Cogmind - Beta 10.2 @@@ ROGUE MODE // 2021.03.29 @ 17:55:36 Player: ChromeKnight Result: Smashed by cave-in Performance ------------- Evolutions (0) 0 Regions Visited (2) 400 Robots Destroyed (13) 65 Value Destroyed (231) 231 Prototype IDs (0) 0 Alien Tech Used (0) 0 Bonus (0) 0 TOTAL SCORE: 696 Bonus ------- None Cogmind --------- Core Integrity 0/250 Matter 157/300 Energy 100/100 System Corruption 4% Temperature Cool (2) Movement Hovering (120) Ox1 Location -10/Mines Parts ------- > --- POWER (1) -------- (None) > --- PROPULSION (2) --- Improved Hover Unit > --- UTILITY (2) ------ Small Storage Unit > --- WEAPON (2) ------- Assault Rifle Rocket Launcher > --- INVENTORY (6) ---- Light Ion Engine Improved Hover Unit Heavy EM Pulse Gun Heavy EM Pulse Gun Heavy EM Pulse Gun Datajack Peak State ------------ > --- POWER ------------ Light Ion Engine > --- PROPULSION ------- Improved Hover Unit Improved Hover Unit > --- UTILITY ---------- Small Storage Unit > --- WEAPON ----------- Assault Rifle Rocket Launcher > --- INVENTORY -------- Light Ion Engine Improved Hover Unit Heavy EM Pulse Gun Heavy EM Pulse Gun Heavy EM Pulse Gun Datajack [Rating: 10] Favorites ----------- Power Light Ion Engine Engine Light Ion Engine Propulsion Aluminum Leg Leg Aluminum Leg Hover Unit Improved Hover Unit Utility Small Storage Unit Storage Small Storage Unit Weapon Assault Rifle Ballistic Gun Assault Rifle Launcher Rocket Launcher Build | -11 -10 -10 ------- Run | Scr Mat Min Slots Evolved . | . . . Power . | . . . Propulsion . | . . . Utility . | . . . Weapon . | . . . Parts Attached 14 | 6 5 3 Power 3 | 1 1 1 Engine 3 | 1 1 1 Core . | . . . Reactor . | . . . Propulsion 5 | 2 2 1 Treads . | . . . Leg 2 | 2 . . Wheel . | . . . Hover 3 | . 2 1 Flight . | . . . Utility 1 | 1 . . Device . | . . . Storage 1 | 1 . . Processor . | . . . Hackware . | . . . Protection . | . . . Artifact . | . . . Weapon 5 | 2 2 1 Energy Gun . | . . . Energy Cannon . | . . . Ballistic Gun 4 | 2 2 . Ballistic Cannon . | . . . Launcher 1 | . . 1 Special Weapon . | . . . Impact Weapon . | . . . Slashing Weapon . | . . . Piercing Weapon . | . . . Special Melee Weapon . | . . . Unidentified Prototypes . | . . . Parts Lost 3 | . 1 2 Power 2 | . 1 1 Propulsion 1 | . . 1 Utility . | . . . Weapon . | . . . Highest Loss Streak 2 | . 1 2 Average Slot Usage (%) 84 | . 84 83 Engine 13 | . 13 14 Leg 16 | . 24 . Hover 11 | . 3 28 Storage 14 | . 14 14 Ballistic Gun 26 | . 28 23 Launcher 1 | . . 3 Naked Turns . | . . . Heaviest Build 13 | 10 10 13 Greatest Support 20 | 20 20 16 Greatest Overweight (x) 3 | 3 1 . Average Overweight (x) . | . . . Largest Inventory Capacity 6 | 6 6 6 Average Capacity 5 | 5 6 6 Most Carried 6 | 1 6 6 Average Carried 4 | . 4 6 Final Capacity 6 | 6 6 6 Final Carried 6 | 1 6 6 Class Distribution -------------------- 100% | Mutant Dominant Class ---------------- Mutant | -10/Materials Mutant | -10/Mines Resources | -11 -10 -10 ----------- Run | Scr Mat Min Matter Collected 426 | 236 104 86 Remotely . | . . . Salvage Created 191 | . 104 87 Parts 16 | . 8 8 Haulers Intercepted . | . . . Recyclers Shooed . | . . . Parts Field Recycled . | . . . Retrieved Matter . | . . . Parts Self-Destructed . | . . . Prevented . | . . . Kills | -11 -10 -10 ------- Run | Scr Mat Min Combat Hostiles Destroyed 12 | . 4 8 Guns 8 | . 4 4 AOE 4 | . . 4 Classes Destroyed 3 | . 3 . Operator 1 | . 1 . Swarmer 9 | . 3 6 Grunt 3 | . 1 2 Best Kill Streak 5 | . 3 5 Combat Bots Only 5 | . 3 5 Max Kills in Single Turn 2 | . 2 2 Gunslinging 1 | . 1 . Exploded 1 | . . 1 Melee . | . . . Uniques/NPCs Destroyed . | . . . Combat | -11 -10 -10 -------- Run | Scr Mat Min Damage Taken 961 | . 399 562 Core 273 | . 71 202 Absorbed by Shields . | . . . Core Remaining (%) 100 | 100 . . Volleys Fired 41 | . 25 16 Largest 2 | . 2 2 Hottest 53 | . 40 53 Shots Fired 82 | . 50 32 Gun 74 | . 50 24 Cannon . | . . . Launcher 8 | . . 8 Special . | . . . Kinetic 74 | . 50 24 Thermal . | . . . Explosive 8 | . . 8 Electromagnetic . | . . . Robot Hit Streak 8 | . 5 8 Robot Miss Streak 11 | . 10 11 Penetration Max . | . . . Secondary Targets 3 | . 2 1 Max Gunslinging Chain 1 | . 1 1 Shots Hit Robots 37 | . 20 17 Core Hits 18 | . 7 11 Critical Hits . | . . . Critical Kills . | . . . Critical Parts Destroyed . | . . . Melee Attacks . | . . . Impact . | . . . Slashing . | . . . Piercing . | . . . Sneak Attacks . | . . . Combat Hostiles . | . . . Follow-up Attacks . | . . . Damage Inflicted 878 | . 207 671 Guns 298 | . 207 91 Cannons . | . . . Explosions 580 | . . 580 Melee . | . . . Ramming . | . . . Kinetic 298 | . 207 91 Thermal . | . . . Explosive 580 | . . 580 Electromagnetic . | . . . Impact . | . . . Slashing . | . . . Piercing . | . . . Highest Corruption . | . . . Average Corruption . | . . . Corruption Purged . | . . . Overload Shots . | . . . Overflow Damage 61 | . . 61 Projectiles . | . . . Explosions 61 | . . 61 Melee . | . . . Knockbacks . | . . . Impact . | . . . Kinetic . | . . . Secondary . | . . . Self-Inflicted Damage 64 | . . 64 Shots 2 | . . 2 Rammed . | . . . Targets Rammed . | . . . Kicked . | . . . Crushed . | . . . Highest Temperature 18 | . 6 18 Average Temperature 8 | . 5 8 Received Heat Transfer 54 | . 24 30 Siege Activations . | . . . Robots Corrupted . | . . . Combat Hostiles . | . . . Parts Fried . | . . . Impact Corruptions . | . . . Robots Melted . | . . . Combat Hostiles . | . . . Parts Melted . | . . . Heat Transferred . | . . . Parts Sabotaged . | . . . Parts Stolen . | . . . Parts Stripped . | . . . Power Chain Reactions . | . . . Missiles Intercepted . | . . . Alert | -11 -10 -10 ------- Run | Scr Mat Min Peak Influence 233 | . 188 233 Initial 13 | . . 13 Average 74 | . 79 80 Maximum Alert Level 1 | . . 1 Low Security (%) 99 | 100 100 97 Level 1 . | . . 2 Level 2 . | . . . Level 3 . | . . . Level 4 . | . . . Level 5 . | . . . High Security . | . . . Max Security . | . . . Squads Dispatched 1 | . 1 . Investigation . | . . . Extermination . | . . . Reinforcement 1 | . 1 . Assault . | . . . Garrison . | . . . Intercept . | . . . Construction Impeded . | . . . Haulers Reinforced . | . . . Stealth | -11 -10 -10 --------- Run | Scr Mat Min Distress Signals 1 | . 1 . Communications Jammed . | . . . Distress Signals . | . . . Times Spotted 23 | . 14 9 Peak Tracking Total 5 | . 4 5 Tactical Retreats 2 | . 1 1 Traps | -11 -10 -10 ------- Run | Scr Mat Min Traps Triggered 2 | . 2 . Indirectly . | . . . Trap Hack Attempts . | . . . Triggered . | . . . Disarmed . | . . . Reprogrammed . | . . . Reused . | . . . Traps Extracted . | . . . Installed . | . . . Triggered . | . . . Machines | -11 -10 -10 ---------- Run | Scr Mat Min Machines Disabled 1 | . . 1 Max in Single Turn 1 | . . 1 Machines Sabotaged . | . . . Garrisons Compromised . | . . . Overloaded Fab Kills . | . . . Fab Network Shutdowns . | . . . Hacking | -11 -10 -10 --------- Run | Scr Mat Min Machines Accessed 4 | . 4 . Terminals 4 | . 4 . Fabricators . | . . . Repair Stations . | . . . Recycling Units . | . . . Scanalyzers . | . . . Garrison Access . | . . . Total Hacks 12 | . 12 . Successful 4 | . 4 . Failed 8 | . 8 . Catastrophic 1 | . 1 . Database Lockouts . | . . . Manual 5 | . 5 . Terminals 12 | . 12 . Fabricators . | . . . Repair Stations . | . . . Recycling Units . | . . . Scanalyzers . | . . . Garrison Access . | . . . Terminal Hacks 4 | . 4 . Robot Analysis 1 | . 1 . Branch Access Points 1 | . 1 . Emergency Access Points 1 | . 1 . Hauler Manifests 1 | . 1 . Fabricator Hacks . | . . . Repair Station Hacks . | . . . Recycling Unit Hacks . | . . . Scanalyzer . | . . . Garrison Access Hacks . | . . . Unauthorized Hacks . | . . . Terminals . | . . . Fabricators . | . . . Repair Stations . | . . . Recycling Units . | . . . Scanalyzers . | . . . Garrison Access . | . . . Data Cores Recovered . | . . . Used . | . . . Hacking Detections 2 | . 2 . Full Trace Events . | . . . Feedback Events . | . . . Feedback Blocked . | . . . Robot Schematics Acquired . | . . . Robots Built . | . . . Matter . | . . . Time . | . . . Total Robot Build Rating . | . . . Part Schematics Acquired . | . . . Parts Built . | . . . Matter . | . . . Time . | . . . Total Part Build Rating . | . . . Parts Repaired . | . . . Time . | . . . Parts Recycled . | . . . Recycled Matter . | . . . Retrieved Matter . | . . . Retrieved Components . | . . . Parts Scanalyzed . | . . . Part Schematics Acquired . | . . . Parts Damaged . | . . . Bothacking | -11 -10 -10 ------------ Run | Scr Mat Min Used RIF Installer . | . . . Robots Hacked . | . . . Non-combat . | . . . Combat . | . . . Robot Hacks Applied . | . . . Relay Couplers Released . | . . . Robots Rewired . | . . . Allies Hacked . | . . . Hacks Repelled . | . . . Allies | -11 -10 -10 -------- Run | Scr Mat Min Total Allies . | . . . Largest Group . | . . . Highest-Rated Group . | . . . Highest-Rated Ally . | . . . Total Orders . | . . . Ally Attacks . | . . . Total Damage . | . . . Kills . | . . . Allies Corrupted . | . . . Allies Melted . | . . . Intel | -11 -10 -10 ------- Run | Scr Mat Min Robot Analysis Total 1 | . 1 . Derelict Logs Recovered . | . . . Drone Launches . | . . . Drone Recoveries . | . . . Exploration | -11 -10 -10 ------------- Run | Scr Mat Min Turns Passed 797 | 54 506 237 Spaces Moved 701 | 36 366 299 Core 8 | 8 . . Treads . | . . . Legs 314 | 28 286 . Wheels . | . . . Hover 379 | . 80 299 Flight . | . . . Fastest Speed 50 | 50 56 56 Average Speed 85 | 125 106 56 Slowest Speed 200 | 200 120 56 Overloaded Moves . | . . . Propulsion Burnouts . | . . . Robots Hopped . | . . . Cave-ins Triggered 1 | . . 1 Exploration Rate (%) 40 | 3 74 43 Regions Visited 2 Branch Regions 1 Pre-discovered Areas . | . . . Known Exits Taken 1 | . 1 . Unknown Exits Taken 1 | 1 . . Scrap Searched 1 | . . 1 Spaces Dug . | . . . Terrain Destroyed 84 | . . 84 Melee . | . . . Projectile . | . . . AOE 84 | . . 84 Terrain Rammed . | . . . Walls Destroyed . | . . . Machines Disabled . | . . . Actions | -11 -10 -10 --------- Run | Scr Mat Min Total 820 | 42 439 339 Wait 42 | . 26 16 Move 698 | 35 365 298 Hop . | . . . Pick Up 13 | 1 10 2 Fast Attach 10 | 6 3 1 Attach . | . . . Detach . | . . . Swap 4 | . 2 2 Drop 12 | . 8 4 Fire 41 | . 25 16 Melee . | . . . Ram . | . . . Kick . | . . . Crush . | . . . Escape Stasis . | . . . Rewire . | . . . Trap . | . . . Miscellaneous . | . . . Route ------- -11/Scrapyard -10/Materials (discovered 3 exits: [*Mat x2] / *Min) -10/Mines (discovered 1 exit: [*Mat]) History --------- Turn | Location | Event 27 | -11/Scrapyard | Discovered new exit (range 14) 55 | -11/Scrapyard | Entered Materials 123 | -10/Materials | Discovered new exit (range 13) 157 | -10/Materials | Identified exit to Mines 321 | -10/Materials | Build established: Mutant 396 | -10/Materials | Discovered new exit (range 8) 486 | -10/Materials | Discovered new exit (range 16) 561 | -10/Materials | Entered Mines 654 | -10/Mines | Discovered new exit (range 11) 713 | -10/Mines | Received a Rocket Launcher from a helpful Derelict 785 | -10/Mines | Core integrity fell below 50% 798 | -10/Mines | Crushed by falling debris 798 | -10/Mines | Smashed by cave-in Last Messages --------------- 00730_ Acquired Rocket Launcher. 00732_ K-01 Serf collects debris. 00772_ Seismic Survey Station disabled. 00784_ G-34 Mercenary destroyed. 00787_ Destroyed Particle Gun. 00787_ Destroyed Lgt. Ion Engine. 00787_ S-10 Pest destroyed. 00789_ The unstable cave ceiling collapses. 00790_ G-47 Trooper destroyed. 00790_ Destroyed Lgt. Assault Rifle. 00791_ The unstable cave ceiling collapses. 00793_ S-10 Pest destroyed. 00794_ The unstable cave ceiling collapses. 00796_ K-01 Serf collects debris. 00798_ The unstable cave ceiling collapses. 00798_ Crushed by falling debris. 00798_ Imp. Hover Unit destroyed. 00798_ System corrupted by crushing effect (+3). 00798_ Lgt. Ion Engine destroyed. 00798_ System corrupted by crushing effect (+1). Map ----- +----------------------------------------------------+ | ?????# #??????????? | | ?????# ##?????????? | | ?????# #### #?????????? | | ?????# #??## #?????????? | | ?????# #???## #?????????? | | ?????# ##???## ##?????????? | | ????## #????####????????### | | ???## #??????????????### | | ??## #?????????????## | | ??# #??????????#### | | ??# #??????????# | | ??## #??????????# ### # | | ???## #?########## #?# # | | ????## #?# #?##### | | ?????### ### ##########?????? | | ???????# #??????????????? | | ???????# #####??????????????? | | ???????# #????####??????????? | | ???????# ##?? ???????????? | | ????### k ## """???????????? | | ????# # """ ??????????? | | ?#### r """ ??????????? | | ?# #????????? | | ?# ### #????????? | | ?# #?????????????????? | | ?# @% #?????????????????? | | ?# ##?????????????????? | | ?# #?????????????????? | | ?# #????????????????? | | ?## ##????????????????? | | ??# ????????????????? | | ?? ## #??????????????? | | ?? #??#??????????????? | | ??# # #?????????????????? | | ?? # ##?????????????????? | | ?? ###??????????????????? | | ?? ###????????????????????? | | ??## ???????????????????????? | | ???? ???????????????????????? | | ???? ???????????????????????? | | ???? ???????????????????????? | | ????????????????????????????? | | ????????????????????????????? | | ????????????????????????????? | | ????????????????????????????? | | ????????????????????????????? | | | | | | | | | +----------------------------------------------------+ Best States ------------- Heat Dissipation 25 Energy Generation 10 Energy Capacity 125 Matter Stores 291 Matter Capacity 300 Sight Range 16 Terrain Scan Density 10 Evasion (%) 53 Item Schematics ----------------- None Robot Schematics ------------------ None Fabricated ------------ Nothing Alien Tech Used ----------------- None Achievements -------------- None Challenges ------------ None Game ------ Seed ManeuveringGravityDissipator Manual? 0 Play Time 00:09:13 Cumulative 106.0 hours Start 2021.03.29 @ 17:48:08 End 2021.03.29 @ 17:55:36 Sessions 1 Manual Loads 0 Difficulty Rogue Special Mode None Game No. 260 Rogue 107 Adventurer 148 Explorer 5 Win Type - Total 1 Types 1/0/0/0/0/0/0/0/0 Lore% 59 Gallery% 68 Achievement% 53 Wizard Run 0 Options --------- ASCII 0 Keyboard 0 Movement Numpad Keybinds 0 Fullscreen 1 Font 14/X11 Map View 84x54 Tactical HUD 1 Map Filters NONE Filters NONE Steam 1 RUN: e2bb0b2f-6d43-48a2-8eea-774aa207248e